[Event "Late-Titled-Tuesday-Blitz-September-19-2023"]
[Site "Chess.com"]
[Date "2023.09.19"]
[Round "10"]
[White "Lennis93"]
[Black "dawid498"]
[Result "1-0"]
[WhiteElo "2744"]
[BlackElo "2665"]
[TimeControl "180+1"]
[EndTime "15:55:24 PDT"]
[Termination "Lennis93 won by checkmate"]

1. e4 {[%clk 0:02:57.7]} 1... c5 {[%clk 0:02:59.7]} 2. Nf3 {[%clk 0:02:57.8]}
2... e6 {[%clk 0:03:00.2]} 3. b3 {[%clk 0:02:58.1]} 3... b6 {[%clk 0:03:00.2]}
4. Bd3 {[%clk 0:02:58.2]} 4... Nc6 {[%clk 0:02:54.8]} 5. O-O {[%clk 0:02:58.4]}
5... Nf6 {[%clk 0:02:35.4]} 6. Re1 {[%clk 0:02:56.8]} 6... e5 {[%clk 0:02:31.2]}
7. Nc3 {[%clk 0:02:53.4]} 7... d6 {[%clk 0:02:19]} 8. Bc4 {[%clk 0:02:44.5]}
8... h6 {[%clk 0:02:11.4]} 9. Nd5 {[%clk 0:02:40.9]} 9... g5 {[%clk 0:01:54.3]}
10. d3 {[%clk 0:02:32.9]} 10... Bg7 {[%clk 0:01:42]} 11. Nd2 {[%clk 0:02:28.8]}
11... O-O {[%clk 0:01:33.3]} 12. Nxf6+ {[%clk 0:02:28.1]} 12... Qxf6 {[%clk
0:01:32.5]} 13. Bd5 {[%clk 0:02:22.5]} 13... Bd7 {[%clk 0:01:28.7]} 14. c3
{[%clk 0:02:22.6]} 14... Rad8 {[%clk 0:01:20.5]} 15. Nc4 {[%clk 0:02:21.2]}
15... Ne7 {[%clk 0:01:20.8]} 16. Ne3 {[%clk 0:02:19.7]} 16... Nxd5 {[%clk
0:01:08.8]} 17. Nxd5 {[%clk 0:02:20.6]} 17... Qe6 {[%clk 0:01:09.5]} 18. a4
{[%clk 0:02:20.3]} 18... f5 {[%clk 0:01:05.8]} 19. a5 {[%clk 0:02:15.5]} 19...
b5 {[%clk 0:01:05.5]} 20. a6 {[%clk 0:02:14.8]} 20... f4 {[%clk 0:00:58.4]} 21.
b4 {[%clk 0:02:07]} 21... cxb4 {[%clk 0:00:42.2]} 22. cxb4 {[%clk 0:02:05.1]}
22... Bc6 {[%clk 0:00:38.8]} 23. Nc3 {[%clk 0:01:57.7]} 23... f3 {[%clk
0:00:35]} 24. Re3 {[%clk 0:01:55.3]} 24... fxg2 {[%clk 0:00:32.6]} 25. Rg3
{[%clk 0:01:53.3]} 25... Rf7 {[%clk 0:00:31]} 26. Be3 {[%clk 0:01:52.5]} 26...
Rdf8 {[%clk 0:00:30.7]} 27. Qh5 {[%clk 0:01:45.5]} 27... d5 {[%clk 0:00:27.1]}
28. Bc5 {[%clk 0:01:40.4]} 28... dxe4 {[%clk 0:00:16.8]} 29. Nxe4 {[%clk
0:01:37.7]} 29... Bxe4 {[%clk 0:00:16.1]} 30. dxe4 {[%clk 0:01:38.6]} 30... Rd8
{[%clk 0:00:14.6]} 31. h4 {[%clk 0:01:38.7]} 31... gxh4 {[%clk 0:00:10.2]} 32.
Qxh4 {[%clk 0:01:39.6]} 32... Rc8 {[%clk 0:00:04.2]} 33. Be3 {[%clk 0:01:34.6]}
33... Kh8 {[%clk 0:00:04.6]} 34. Kxg2 {[%clk 0:01:33.1]} 34... Rc6 {[%clk
0:00:04]} 35. Rh1 {[%clk 0:01:15.5]} 35... Kg8 {[%clk 0:00:04]} 36. Qd8+ {[%clk
0:00:39.7]} 36... Kh7 {[%clk 0:00:02.8]} 37. Rxh6+ {[%clk 0:00:37.7]} 37... Qxh6
{[%clk 0:00:02.3]} 38. Bxh6 {[%clk 0:00:37.8]} 38... Kxh6 {[%clk 0:00:01.4]} 39.
Qh4# {[%clk 0:00:36.2]} 1-0

[Event "Late-Titled-Tuesday-Blitz-September-19-2023"]
[Site "Chess.com"]
[Date "2023.09.19"]
[Round "10"]
[White "Bilan_Danila"]
[Black "egnfanclub"]
[Result "1-0"]
[WhiteElo "2568"]
[BlackElo "2377"]
[TimeControl "180+1"]
[EndTime "15:55:31 PDT"]
[Termination "Bilan_Danila won by resignation"]

1. d4 {[%clk 0:03:00.9]} 1... d5 {[%clk 0:02:56.5]} 2. Nf3 {[%clk 0:03:01.4]}
2... Nf6 {[%clk 0:02:56.5]} 3. c4 {[%clk 0:03:01.8]} 3... c6 {[%clk 0:02:56.5]}
4. Nc3 {[%clk 0:03:02.4]} 4... dxc4 {[%clk 0:02:53]} 5. a4 {[%clk 0:02:59.8]}
5... Bf5 {[%clk 0:02:52.6]} 6. e3 {[%clk 0:02:53.5]} 6... e6 {[%clk 0:02:52.6]}
7. Bxc4 {[%clk 0:02:36]} 7... Bb4 {[%clk 0:02:53.1]} 8. O-O {[%clk 0:02:33.3]}
8... O-O {[%clk 0:02:51.2]} 9. Qe2 {[%clk 0:02:33.8]} 9... Nbd7 {[%clk
0:02:44.3]} 10. e4 {[%clk 0:02:31.5]} 10... Bg4 {[%clk 0:02:44.6]} 11. Rd1
{[%clk 0:02:04.6]} 11... Qc7 {[%clk 0:02:34.8]} 12. h3 {[%clk 0:02:02.3]} 12...
Bxf3 {[%clk 0:02:29.8]} 13. Qxf3 {[%clk 0:02:03.2]} 13... e5 {[%clk 0:02:30.6]}
14. Qg3 {[%clk 0:01:25.3]} 14... Rac8 {[%clk 0:02:21.3]} 15. dxe5 {[%clk
0:00:58.2]} 15... Qxe5 {[%clk 0:02:09.6]} 16. Bf4 {[%clk 0:00:54.4]} 16... Qe7
{[%clk 0:01:55.2]} 17. Bh6 {[%clk 0:00:21]} 17... Nh5 {[%clk 0:01:45]} 18. Qg4
{[%clk 0:00:19.1]} 18... Ndf6 {[%clk 0:01:43.8]} 19. Qg5 {[%clk 0:00:15]} 19...
Kh8 {[%clk 0:01:37.8]} 20. e5 {[%clk 0:00:14.5]} 20... gxh6 {[%clk 0:01:35.1]}
21. exf6 {[%clk 0:00:14.5]} 21... hxg5 {[%clk 0:01:18.9]} 22. fxe7 {[%clk
0:00:14.8]} 22... Bxe7 {[%clk 0:01:19.5]} 23. Rd7 {[%clk 0:00:14.9]} 23... Bf6
{[%clk 0:01:09.9]} 24. Rxb7 {[%clk 0:00:12.4]} 24... Kg7 {[%clk 0:01:07.5]} 25.
Rd1 {[%clk 0:00:09.5]} 25... Rb8 {[%clk 0:01:05.7]} 26. Rdd7 {[%clk 0:00:07]}
26... Rxb7 {[%clk 0:01:03.5]} 27. Rxb7 {[%clk 0:00:07.9]} 27... a5 {[%clk
0:01:01.7]} 28. Ne4 {[%clk 0:00:07.4]} 28... Nf4 {[%clk 0:00:56.6]} 29. g3
{[%clk 0:00:06.3]} 29... Nd5 {[%clk 0:00:55.5]} 30. Nd6 {[%clk 0:00:03.5]} 30...
Be5 {[%clk 0:00:48.4]} 31. Nf5+ {[%clk 0:00:03.2]} 31... Kf6 {[%clk 0:00:48]}
32. g4 {[%clk 0:00:03.3]} 32... h5 {[%clk 0:00:47.8]} 33. Bxd5 {[%clk
0:00:03.5]} 33... cxd5 {[%clk 0:00:46.6]} 34. Rb6+ {[%clk 0:00:03.6]} 34... Bd6
{[%clk 0:00:45.5]} 35. Rxd6+ {[%clk 0:00:03.9]} 35... Ke5 {[%clk 0:00:46]} 36.
Ra6 {[%clk 0:00:04.8]} 36... hxg4 {[%clk 0:00:45.6]} 37. hxg4 {[%clk 0:00:04.9]}
37... d4 {[%clk 0:00:45.8]} 38. Rxa5+ {[%clk 0:00:04.8]} 38... Ke4 {[%clk
0:00:46.4]} 39. Rb5 {[%clk 0:00:04.5]} 39... Rc8 {[%clk 0:00:45.5]} 40. Rb4
{[%clk 0:00:04.2]} 40... Rc1+ {[%clk 0:00:43.7]} 41. Kg2 {[%clk 0:00:04.6]}
41... Rd1 {[%clk 0:00:44.6]} 42. Nxd4 {[%clk 0:00:04.3]} 42... Rxd4 {[%clk
0:00:44.2]} 43. Rxd4+ {[%clk 0:00:04.9]} 43... Kxd4 {[%clk 0:00:45.1]} 44. Kf3
{[%clk 0:00:05.6]} 1-0

[Event "Late-Titled-Tuesday-Blitz-September-19-2023"]
[Site "Chess.com"]
[Date "2023.09.19"]
[Round "10"]
[White "TEREZANA"]
[Black "Defenstrator"]
[Result "1-0"]
[WhiteElo "2482"]
[BlackElo "2339"]
[TimeControl "180+1"]
[EndTime "15:55:31 PDT"]
[Termination "TEREZANA won on time"]

1. d4 {[%clk 0:03:00.9]} 1... e6 {[%clk 0:02:53]} 2. Nf3 {[%clk 0:03:01.1]} 2...
d5 {[%clk 0:02:53.1]} 3. c3 {[%clk 0:02:59.7]} 3... b5 {[%clk 0:02:37]} 4. Bf4
{[%clk 0:02:56.9]} 4... Bd6 {[%clk 0:02:33.7]} 5. Bg3 {[%clk 0:02:56.4]} 5...
Nf6 {[%clk 0:02:26.9]} 6. Nbd2 {[%clk 0:02:55.8]} 6... c5 {[%clk 0:02:18.4]} 7.
e3 {[%clk 0:02:44.1]} 7... c4 {[%clk 0:02:11.9]} 8. Qc2 {[%clk 0:02:44.4]} 8...
Bb7 {[%clk 0:01:57.8]} 9. Be2 {[%clk 0:02:42.3]} 9... O-O {[%clk 0:01:54.9]} 10.
O-O {[%clk 0:02:41.8]} 10... Bxg3 {[%clk 0:01:54.8]} 11. hxg3 {[%clk 0:02:41.7]}
11... a5 {[%clk 0:01:47.7]} 12. Ne5 {[%clk 0:02:41.4]} 12... Nc6 {[%clk
0:01:26.8]} 13. Nxc6 {[%clk 0:02:35.7]} 13... Bxc6 {[%clk 0:01:27.1]} 14. Bf3
{[%clk 0:02:36.6]} 14... b4 {[%clk 0:01:16.2]} 15. Nxc4 {[%clk 0:02:34.9]} 15...
bxc3 {[%clk 0:01:13.8]} 16. Ne5 {[%clk 0:02:18.9]} 16... cxb2 {[%clk 0:01:08.7]}
17. Qxb2 {[%clk 0:02:12.5]} 17... Be8 {[%clk 0:01:08.6]} 18. Rab1 {[%clk
0:02:02.5]} 18... Rc8 {[%clk 0:00:57.2]} 19. Rfc1 {[%clk 0:01:56.1]} 19... Nd7
{[%clk 0:00:52.6]} 20. Nc6 {[%clk 0:01:52.6]} 20... Rxc6 {[%clk 0:00:48.1]} 21.
Rxc6 {[%clk 0:01:53.5]} 21... Ne5 {[%clk 0:00:45.1]} 22. Rc5 {[%clk 0:01:46.9]}
22... Nc4 {[%clk 0:00:45.2]} 23. Qb8 {[%clk 0:01:36.6]} 23... Qf6 {[%clk
0:00:37.8]} 24. Qf4 {[%clk 0:01:29.2]} 24... Qg6 {[%clk 0:00:35.4]} 25. Rb8
{[%clk 0:01:23.5]} 25... f6 {[%clk 0:00:12.4]} 26. Rcc8 {[%clk 0:01:08.2]} 26...
Qf7 {[%clk 0:00:08.3]} 27. Rc7 {[%clk 0:01:03.3]} 27... Qg6 {[%clk 0:00:08.8]}
28. e4 {[%clk 0:00:59.2]} 28... e5 {[%clk 0:00:06.8]} 29. Qg4 {[%clk 0:00:49.6]}
29... dxe4 {[%clk 0:00:05.3]} 30. Qe6+ {[%clk 0:00:42.2]} 30... Kh8 {[%clk
0:00:02]} 31. Qe7 {[%clk 0:00:23.3]} 1-0

[Event "Late-Titled-Tuesday-Blitz-September-19-2023"]
[Site "Chess.com"]
[Date "2023.09.19"]
[Round "10"]
[White "dropstoneDP"]
[Black "sergoy"]
[Result "1-0"]
[WhiteElo "3056"]
[BlackElo "2917"]
[TimeControl "180+1"]
[EndTime "15:55:32 PDT"]
[Termination "dropstoneDP won by resignation"]

1. e4 {[%clk 0:03:00.9]} 1... c6 {[%clk 0:02:56.1]} 2. d4 {[%clk 0:02:59.7]}
2... d5 {[%clk 0:02:56.5]} 3. e5 {[%clk 0:03:00.3]} 3... Bf5 {[%clk 0:02:56.4]}
4. Nd2 {[%clk 0:02:59.3]} 4... e6 {[%clk 0:02:56.2]} 5. Nb3 {[%clk 0:02:59.9]}
5... Nd7 {[%clk 0:02:55.6]} 6. Nf3 {[%clk 0:02:51.4]} 6... h6 {[%clk 0:02:55]}
7. Be2 {[%clk 0:02:49.5]} 7... Ne7 {[%clk 0:02:54.4]} 8. O-O {[%clk 0:02:49.7]}
8... g5 {[%clk 0:02:54.5]} 9. Ne1 {[%clk 0:02:43.8]} 9... Qc7 {[%clk 0:02:53.6]}
10. f4 {[%clk 0:02:38]} 10... c5 {[%clk 0:02:30.6]} 11. fxg5 {[%clk 0:02:30.2]}
11... c4 {[%clk 0:02:14.5]} 12. Nd2 {[%clk 0:02:28.8]} 12... hxg5 {[%clk
0:02:14.4]} 13. Ndf3 {[%clk 0:02:26.8]} 13... g4 {[%clk 0:02:08.7]} 14. Ng5
{[%clk 0:02:19.8]} 14... f6 {[%clk 0:02:09]} 15. Bxg4 {[%clk 0:01:38.1]} 15...
fxg5 {[%clk 0:01:37.4]} 16. Bxg5 {[%clk 0:01:37.5]} 16... O-O-O {[%clk
0:01:25.2]} 17. Bxf5 {[%clk 0:01:37.4]} 17... exf5 {[%clk 0:01:25]} 18. c3
{[%clk 0:01:18.7]} 18... Qc6 {[%clk 0:01:11.4]} 19. Qf3 {[%clk 0:01:12.9]} 19...
Re8 {[%clk 0:00:57.4]} 20. Nc2 {[%clk 0:01:10.8]} 20... Bh6 {[%clk 0:00:57.6]}
21. Bxe7 {[%clk 0:01:04.7]} 21... Rxe7 {[%clk 0:00:56.6]} 22. Nb4 {[%clk
0:01:05.2]} 22... Qg6 {[%clk 0:00:56.5]} 23. Nxd5 {[%clk 0:01:04.9]} 23... Rg7
{[%clk 0:00:57]} 24. Rae1 {[%clk 0:00:54.6]} 24... Qe6 {[%clk 0:00:22]} 25. Re2
{[%clk 0:00:48.1]} 25... Rhg8 {[%clk 0:00:20.8]} 26. Kh1 {[%clk 0:00:47.3]}
26... f4 {[%clk 0:00:18.7]} 27. b3 {[%clk 0:00:46.3]} 27... cxb3 {[%clk
0:00:05.7]} 28. axb3 {[%clk 0:00:47.2]} 28... Rh8 {[%clk 0:00:06.2]} 29. c4
{[%clk 0:00:45.4]} 29... Qg6 {[%clk 0:00:03.1]} 30. e6 {[%clk 0:00:43.8]} 30...
Nb6 {[%clk 0:00:03.5]} 31. Nxf4 {[%clk 0:00:26.1]} 31... Qf5 {[%clk 0:00:02.2]}
32. d5 {[%clk 0:00:22.7]} 32... Kb8 {[%clk 0:00:01.3]} 33. e7 {[%clk 0:00:22.7]}
33... Nc8 {[%clk 0:00:01.8]} 34. e8=Q {[%clk 0:00:22.3]} 34... Rxe8 {[%clk
0:00:02.5]} 35. Rxe8 {[%clk 0:00:22.7]} 35... Bxf4 {[%clk 0:00:03.1]} 36. Qxf4+
{[%clk 0:00:22.8]} 36... Qxf4 {[%clk 0:00:04]} 37. Rxf4 {[%clk 0:00:23.1]} 1-0

[Event "Late-Titled-Tuesday-Blitz-September-19-2023"]
[Site "Chess.com"]
[Date "2023.09.19"]
[Round "10"]
[White "Zhigalko_Sergei"]
[Black "hellokostya"]
[Result "1-0"]
[WhiteElo "2830"]
[BlackElo "2610"]
[TimeControl "180+1"]
[EndTime "15:55:36 PDT"]
[Termination "Zhigalko_Sergei won by resignation"]

1. e4 {[%clk 0:03:00.9]} 1... c5 {[%clk 0:02:59.7]} 2. c3 {[%clk 0:03:01.2]}
2... Nf6 {[%clk 0:02:58.5]} 3. e5 {[%clk 0:03:01.6]} 3... Nd5 {[%clk 0:02:58.9]}
4. Nf3 {[%clk 0:03:02.3]} 4... e6 {[%clk 0:02:58.3]} 5. Bc4 {[%clk 0:03:02.3]}
5... d6 {[%clk 0:02:57.1]} 6. d4 {[%clk 0:03:02.5]} 6... cxd4 {[%clk 0:02:56.9]}
7. cxd4 {[%clk 0:03:03.4]} 7... Be7 {[%clk 0:02:57.2]} 8. O-O {[%clk 0:03:03.7]}
8... O-O {[%clk 0:02:56.7]} 9. Bd2 {[%clk 0:03:04.3]} 9... Nd7 {[%clk
0:02:50.5]} 10. Re1 {[%clk 0:03:01.9]} 10... b6 {[%clk 0:02:42.2]} 11. Nc3
{[%clk 0:02:55.8]} 11... Nxc3 {[%clk 0:02:38.7]} 12. Bxc3 {[%clk 0:02:56.7]}
12... Bb7 {[%clk 0:02:34.3]} 13. Qe2 {[%clk 0:02:56]} 13... Qc7 {[%clk
0:02:24.2]} 14. Bd3 {[%clk 0:02:53.9]} 14... dxe5 {[%clk 0:02:16.8]} 15. dxe5
{[%clk 0:02:53.8]} 15... Bxf3 {[%clk 0:02:13.9]} 16. Qxf3 {[%clk 0:02:53.6]}
16... g6 {[%clk 0:02:14.6]} 17. Bc2 {[%clk 0:02:29]} 17... Rac8 {[%clk
0:02:10.8]} 18. Re4 {[%clk 0:02:17.7]} 18... Nc5 {[%clk 0:02:01.3]} 19. Rg4
{[%clk 0:02:16.1]} 19... Qb7 {[%clk 0:01:50.6]} 20. Qe3 {[%clk 0:02:08.5]} 20...
Rfd8 {[%clk 0:01:47.2]} 21. h4 {[%clk 0:02:06.8]} 21... h5 {[%clk 0:01:37.3]}
22. Rf4 {[%clk 0:01:31.9]} 22... Bf8 {[%clk 0:01:37.3]} 23. g4 {[%clk
0:01:28.6]} 23... Bh6 {[%clk 0:01:31.4]} 24. gxh5 {[%clk 0:01:28.7]} 24... Bxf4
{[%clk 0:01:27.3]} 25. Qxf4 {[%clk 0:01:29.6]} 25... Nd3 {[%clk 0:01:14.1]} 26.
Qg3 {[%clk 0:01:22.5]} 26... Nb4 {[%clk 0:00:35.5]} 27. Bb3 {[%clk 0:00:57.8]}
27... Qe4 {[%clk 0:00:30.2]} 28. hxg6 {[%clk 0:00:47.5]} 28... Rd3 {[%clk
0:00:24.5]} 29. Qg5 {[%clk 0:00:33]} 29... Rh3 {[%clk 0:00:24.4]} 30. gxf7+
{[%clk 0:00:30.6]} 30... Kh7 {[%clk 0:00:17.7]} 31. Qg2 {[%clk 0:00:15]} 31...
Qxg2+ {[%clk 0:00:17.2]} 32. Kxg2 {[%clk 0:00:15.9]} 32... Rxh4 {[%clk
0:00:17.8]} 33. Bxe6 {[%clk 0:00:14.8]} 33... Rf8 {[%clk 0:00:15.5]} 34. Kg3
{[%clk 0:00:06.5]} 34... Rh6 {[%clk 0:00:13.4]} 35. Bf5+ {[%clk 0:00:06]} 35...
Kg7 {[%clk 0:00:10.4]} 36. e6+ {[%clk 0:00:06.4]} 1-0

[Event "Late-Titled-Tuesday-Blitz-September-19-2023"]
[Site "Chess.com"]
[Date "2023.09.19"]
[Round "10"]
[White "Taran2004"]
[Black "Verony64"]
[Result "1-0"]
[WhiteElo "2435"]
[BlackElo "2284"]
[TimeControl "180+1"]
[EndTime "15:55:38 PDT"]
[Termination "Taran2004 won by resignation"]

1. e4 {[%clk 0:03:00.9]} 1... e5 {[%clk 0:02:56.5]} 2. Nf3 {[%clk 0:02:58.2]}
2... d6 {[%clk 0:02:56.6]} 3. d4 {[%clk 0:02:57.5]} 3... Nd7 {[%clk 0:02:56.7]}
4. Nc3 {[%clk 0:02:56.2]} 4... c6 {[%clk 0:02:56.5]} 5. a4 {[%clk 0:02:53.7]}
5... Be7 {[%clk 0:02:56.7]} 6. Bc4 {[%clk 0:02:53.4]} 6... Ngf6 {[%clk
0:02:56.8]} 7. O-O {[%clk 0:02:52.6]} 7... O-O {[%clk 0:02:57.4]} 8. Be3 {[%clk
0:02:50.2]} 8... Qc7 {[%clk 0:02:57.9]} 9. h3 {[%clk 0:02:49.5]} 9... b6 {[%clk
0:02:58.2]} 10. Qd2 {[%clk 0:02:47.3]} 10... Bb7 {[%clk 0:02:57.9]} 11. Rad1
{[%clk 0:02:46.3]} 11... a6 {[%clk 0:02:58.3]} 12. Rfe1 {[%clk 0:02:38.5]} 12...
b5 {[%clk 0:02:59.2]} 13. Bd3 {[%clk 0:02:38.3]} 13... b4 {[%clk 0:02:50.7]} 14.
Ne2 {[%clk 0:02:37.6]} 14... c5 {[%clk 0:02:49.5]} 15. dxc5 {[%clk 0:02:19.7]}
15... dxc5 {[%clk 0:02:45.6]} 16. b3 {[%clk 0:02:18.8]} 16... Rad8 {[%clk
0:02:38.4]} 17. Ng3 {[%clk 0:02:18.6]} 17... g6 {[%clk 0:02:31.4]} 18. Qe2
{[%clk 0:02:01.6]} 18... Nb6 {[%clk 0:02:18.5]} 19. Nh2 {[%clk 0:01:58]} 19...
Rd7 {[%clk 0:02:05.6]} 20. Ng4 {[%clk 0:01:54.4]} 20... Nxg4 {[%clk 0:01:43.7]}
21. Qxg4 {[%clk 0:01:55.3]} 21... Rfd8 {[%clk 0:01:32.5]} 22. h4 {[%clk
0:01:53.3]} 22... c4 {[%clk 0:01:13.6]} 23. bxc4 {[%clk 0:01:52.8]} 23... Bc8
{[%clk 0:01:07.5]} 24. Qe2 {[%clk 0:01:36.4]} 24... Nxa4 {[%clk 0:00:53]} 25. h5
{[%clk 0:01:28]} 25... Nc3 {[%clk 0:00:52.5]} 26. Qf3 {[%clk 0:01:28.6]} 26...
Nxd1 {[%clk 0:00:51.7]} 27. Rxd1 {[%clk 0:01:29.5]} 27... Bc5 {[%clk 0:00:39.1]}
28. Bg5 {[%clk 0:01:20.9]} 28... Be7 {[%clk 0:00:32.9]} 29. Bxe7 {[%clk
0:01:18.6]} 29... Rxe7 {[%clk 0:00:32.5]} 30. h6 {[%clk 0:01:19.2]} 30... Qc6
{[%clk 0:00:25.2]} 31. Rb1 {[%clk 0:01:18.2]} 31... a5 {[%clk 0:00:24.4]} 32.
Ra1 {[%clk 0:01:17.9]} 32... Qb6 {[%clk 0:00:22.9]} 33. Rxa5 {[%clk 0:01:11.7]}
33... Re6 {[%clk 0:00:20.6]} 34. Rb5 {[%clk 0:01:07.9]} 34... Qc6 {[%clk
0:00:19.1]} 35. Rxb4 {[%clk 0:01:03.3]} 35... Rf6 {[%clk 0:00:19]} 36. Qe3
{[%clk 0:01:00.7]} 36... Qd6 {[%clk 0:00:14.1]} 37. c5 {[%clk 0:00:56.7]} 37...
Qe6 {[%clk 0:00:09.5]} 38. Rb6 {[%clk 0:00:53.9]} 38... Qe7 {[%clk 0:00:09]} 39.
Qg5 {[%clk 0:00:53.9]} 39... Re6 {[%clk 0:00:06.9]} 40. Qe3 {[%clk 0:00:45.2]}
40... Rxb6 {[%clk 0:00:05.6]} 41. cxb6 {[%clk 0:00:46.1]} 41... Qb7 {[%clk
0:00:05.7]} 42. Qg5 {[%clk 0:00:42.6]} 42... Rd6 {[%clk 0:00:05.7]} 43. Qxe5
{[%clk 0:00:41.5]} 43... Kf8 {[%clk 0:00:02.3]} 44. Qxd6+ {[%clk 0:00:40.3]}
44... Qe7 {[%clk 0:00:02]} 45. Qxe7+ {[%clk 0:00:38.8]} 45... Kxe7 {[%clk
0:00:02.1]} 46. Bc4 {[%clk 0:00:36.2]} 46... f6 {[%clk 0:00:03]} 47. Bd5 {[%clk
0:00:36.2]} 47... Bb7 {[%clk 0:00:03.9]} 48. Bxb7 {[%clk 0:00:36]} 48... Kd6
{[%clk 0:00:04.7]} 49. Bd5 {[%clk 0:00:36.3]} 1-0

[Event "Late-Titled-Tuesday-Blitz-September-19-2023"]
[Site "Chess.com"]
[Date "2023.09.19"]
[Round "10"]
[White "MathiasWomacka"]
[Black "Rodalquilar"]
[Result "0-1"]
[WhiteElo "2570"]
[BlackElo "2749"]
[TimeControl "180+1"]
[EndTime "15:55:48 PDT"]
[Termination "Rodalquilar won by resignation"]

1. e4 {[%clk 0:03:00.9]} 1... d5 {[%clk 0:03:00.2]} 2. exd5 {[%clk 0:02:59.7]}
2... Qxd5 {[%clk 0:03:01.1]} 3. Nc3 {[%clk 0:02:59.5]} 3... Qa5 {[%clk
0:03:01.3]} 4. d4 {[%clk 0:03:00]} 4... Nf6 {[%clk 0:03:01.8]} 5. Nf3 {[%clk
0:03:00.1]} 5... Bf5 {[%clk 0:03:02.2]} 6. Bd2 {[%clk 0:03:00.3]} 6... e6 {[%clk
0:03:02.4]} 7. Bc4 {[%clk 0:02:59.9]} 7... Bb4 {[%clk 0:03:02.3]} 8. a3 {[%clk
0:02:51.1]} 8... Bxc3 {[%clk 0:03:02.3]} 9. Bxc3 {[%clk 0:02:51.6]} 9... Qb6
{[%clk 0:03:03]} 10. Ne5 {[%clk 0:02:27.8]} 10... Nc6 {[%clk 0:02:55.3]} 11.
Nxc6 {[%clk 0:02:22.4]} 11... Qxc6 {[%clk 0:02:55.4]} 12. Qe2 {[%clk 0:02:20.4]}
12... Qxg2 {[%clk 0:02:50.1]} 13. O-O-O {[%clk 0:02:14.4]} 13... Bg4 {[%clk
0:02:47.3]} 14. f3 {[%clk 0:02:03.4]} 14... Qxf3 {[%clk 0:02:33.3]} 15. Qd2
{[%clk 0:01:57.4]} 15... Ne4 {[%clk 0:02:32.2]} 16. Qd3 {[%clk 0:01:36.7]} 16...
Qxd3 {[%clk 0:02:07.1]} 17. Rxd3 {[%clk 0:01:37.6]} 17... Nf2 {[%clk 0:02:06.4]}
18. Rg3 {[%clk 0:01:33.5]} 18... Bf5 {[%clk 0:01:14.3]} 19. Re1 {[%clk
0:01:12.2]} 19... Ne4 {[%clk 0:01:02.1]} 20. Rxg7 {[%clk 0:01:11.1]} 20... Nxc3
{[%clk 0:01:02.6]} 21. bxc3 {[%clk 0:01:07.4]} 21... Bg6 {[%clk 0:01:03.1]} 22.
Bxe6 {[%clk 0:01:05.7]} 22... Kf8 {[%clk 0:00:51.8]} 23. Rxf7+ {[%clk
0:00:40.8]} 23... Bxf7 {[%clk 0:00:51.7]} 24. Rf1 {[%clk 0:00:41.3]} 24... Ke7
{[%clk 0:00:52.3]} 25. Bxf7 {[%clk 0:00:40.4]} 25... Raf8 {[%clk 0:00:46.9]} 26.
Bc4 {[%clk 0:00:41.3]} 26... Rxf1+ {[%clk 0:00:46.4]} 27. Bxf1 {[%clk
0:00:41.9]} 27... Rf8 {[%clk 0:00:37.1]} 28. Bd3 {[%clk 0:00:41.6]} 28... h5
{[%clk 0:00:36.8]} 29. h4 {[%clk 0:00:41.3]} 29... Rf4 {[%clk 0:00:36.3]} 30.
Kd2 {[%clk 0:00:34.8]} 30... Rxh4 {[%clk 0:00:36.5]} 31. Ke3 {[%clk 0:00:35.5]}
31... Rg4 {[%clk 0:00:28.9]} 32. Be2 {[%clk 0:00:33.9]} 32... Rg3+ {[%clk
0:00:27.5]} 33. Bf3 {[%clk 0:00:33.9]} 33... h4 {[%clk 0:00:25.9]} 34. Kf4
{[%clk 0:00:34.4]} 34... c6 {[%clk 0:00:25.7]} 35. c4 {[%clk 0:00:33.5]} 35...
Rg8 {[%clk 0:00:22.3]} 36. Bg4 {[%clk 0:00:30.7]} 36... Kd6 {[%clk 0:00:20.6]}
37. c3 {[%clk 0:00:29.1]} 37... b6 {[%clk 0:00:19.6]} 38. a4 {[%clk 0:00:27.8]}
38... a6 {[%clk 0:00:19.8]} 39. Kf5 {[%clk 0:00:17.1]} 39... Re8 {[%clk
0:00:13.3]} 40. Kg5 {[%clk 0:00:16.1]} 40... Re3 {[%clk 0:00:11.9]} 41. c5+
{[%clk 0:00:14.9]} 41... bxc5 {[%clk 0:00:11.9]} 42. dxc5+ {[%clk 0:00:15.7]}
42... Kxc5 {[%clk 0:00:12.5]} 43. Kxh4 {[%clk 0:00:15.8]} 43... Rxc3 {[%clk
0:00:12.8]} 0-1